Workbook

Sheet Sheet2
B1: بيان بفرق سعر الصرف المطلوب صرفة لشركة بي بي
C3: بيان | D3: المبلغ بالدولار | E3: سعر الصرف | F3: المعادل بالمصري
B4: 1 | C4: المبلغ بسعر الصرف المطلوب صرفة | D4: 28224493.48 | E4: 18.15 | F4: =D4*E4 -> 512274556.7
B5: 2 | C5: المبلغ بسعر الصرف الذي تم | D5: 28224493.48 | E5: 15.85 | F5: =D5*E5 -> 447358221.7
C6: الفرق الواجب سدادة لشركة بي بي | D6: =F6/E6 -> 3576657.576 | E6: 18.15 | F6: =F4-F5 -> 64916335
D8: 24647835.9 | E8: 18.15 | F8: =D8*E8 -> 447358221.6
D9: 3576647.58
F11: 100
D12: 4703054538 | E12: 2916585.43 | F12: =E12/D12*100 -> 0.06201470569
F13: =F11-F12 -> 99.93798529
C18: 100 | D18: =SUM($C$18:C18) -> 100 | E18: 360 | F18: 590.55
C19: 200 | D19: =SUM($C$18:C19) -> 300 | E19: 460 | F19: 454.65
C20: 300 | D20: =SUM($C$18:C20) -> 600 | E20: 70 | F20: 208.65
C21: 500 | D21: =SUM($C$18:C21) -> 1100 | E21: 50 | F21: 73.55
C22: 400 | D22: =SUM($C$18:C22) -> 1500 | E22: 100 | F22: 93.1
C23: 150 | D23: =SUM($C$18:C23) -> 1650 | E23: =3*180 -> 540 | F23: 37.55
C24: 200 | D24: =SUM($C$18:C24) -> 1850 | E24: =3*165 -> 495 | F24: 15.55
C25: 150 | D25: =SUM($C$18:C25) -> 2000 | E25: 240 | F25: 31.1
C26: 250 | D26: =SUM($C$18:C26) -> 2250 | E26: =SUM(E18:E25) -> 2315 | F26: 53.1
C27: 500 | D27: =SUM($C$18:C27) -> 2750 | F27: 147.1
D28: =SUM($C$18:C28) -> 2750 | F28: =SUM(F18:F27) -> 1704.9
D29: =SUM($C$18:C29) -> 2750 | F29: 204.58
D30: =SUM($C$18:C30) -> 2750
D31: =SUM($C$18:C31) -> 2750

Sheet Sheet1
C2: ايرادات انتاج حقول | D2: 4110000002 | E2: مصروفات الاتاوه المستحقه على الحقول | F2: 3360000003
C3: ايراد فائض الإسترداد النقدى | D3: 4110000003 | E3: ضريبة الشريك الأجنبى | F3: 3360000005
C4: ايرادات منح توقيع وتنميه وتدريب | D4: 4200000002 | E4: مشتريات انتاج | F4: 3101000001
C5: ايرادات منح انتاج | D5: 4200000003 | E5: مصروفات استرداد | F5: 3101000002
E6: مشتريات اتول | F6: 3101000003
C9: مبيعات تصدير غازمسال | D9: 4110000001 | E9: مصروفات غاز تشغيل لدى الغير تصدير | F9: 3312000002
C11: 125752.14
C12: -193933.42
C13: -107803.06
C14: 175872

Sheet Sheet4
A1: المبلغ المسدد لصالح IPR من الهيئة
D2: الفاتورة | E2: المسدد | F2: المتبقي
A3: 2023-02-01 | B3: غاز طبيعى | C3: 2023-04-24 | D3: 388287.17 | E3: =D3 -> 388287.17 | F3: =D3-E3 -> 0
A4: 2023-02-01 | B4: غاز طبيعى | C4: 2023-04-24 | D4: 125851.86 | E4: =D4 -> 125851.86 | F4: =D4-E4 -> 0
A5: 2023-03-01 | B5: غاز طبيعى | C5: 2023-05-24 | D5: 554881.26 | E5: =D5 -> 554881.26 | F5: 0
A6: ابريل2023 | B6: غاز طبيعى | C6: 2023-06-26 | D6: 548862.42 | E6: 538293.56 | F6: 10568.86
A7: 2023-02-01 | B7: متكثفات | C7: 2023-04-10 | D7: 92820.15 | E7: =D7 -> 92820.15 | F7: 0
A8: 2023-02-01 | B8: متكثفات | C8: 2023-04-10 | D8: 29399.06 | E8: =D8 -> 29399.06 | F8: 0
A9: 2023-03-01 | B9: متكثفات | C9: 2023-05-09 | D9: 137904.24 | E9: =D9 -> 137904.24 | F9: 0
A10: فروقQ4 2021 ، Q1,Q2,Q3 2022 | B10: متكثفات | C10: 2023-05-16 | D10: 10224.11 | E10: =D10 -> 10224.11 | F10: 0
A11: ابريل2023 | B11: متكثفات | C11: 2023-06-12 | D11: 143374.68 | E11: =D11 -> 143374.68 | F11: 0
E12: =SUM(E3:E11) -> 2021036.09

Sheet Sheet3
A1: تفاصيل سداد مبلغ ال 31 مليون دولار لشركة BP
A2: الحقل | B2: فاتورة | C2: إجمالي مبلغ الفاتورة | D2: المسدد من الفاتورة
A3: أتول | B3: 2023-03-03 | C3: 31167168.51 | D3: 27850185.47
A4: القطامية | B4: 2023-03-03 | C4: 3149814.53 | D4: =C4 -> 3149814.53
A5: الإجمالي | D5: =D3+D4 -> 31000000
C11: 3021570
B12: 0.75 | C12: 2266177.5
C13: =C11-C12 -> 755392.5 | D13: 14284472.18
D14: =D13/C13 -> 18.91000001
B17: جنيه
B18: 8662500 | C18: 15.6 | D18: =B18/C18 -> 555288.4615
D19: 90750
D20: =SUM(D18:D19) -> 646038.4615
B22: 8662500 | C22: 30.03 | D22: =B22/C22 -> 288461.5385
D23: 90750
D24: =SUM(D22:D23) -> 379211.5385
D26: =D20-D24 -> 266826.9231

Sheet Sheet6
A1: 1800000650
A2: 1800000674
A3: 1800000559
A4: 1800000534
A5: 1800000560
A6: 1800000651
A7: 1800000675
A8: 1800000558
A9: 1800000536
A10: 1800000557
A11: 1800000654
A12: 1800000554
A13: 1800000652
A14: 1800000676
A15: 1800000592
A16: 1800000653
A17: 1800000679
A18: 1800000555
A19: 1800000655
A20: 1800000656
A21: 1800000678
A22: 1800000548
A23: 1800000549
A24: 1800000659
A25: 1800000677
A26: 1800000540
A27: 1800000658
A28: 1800000671
A29: 1800000657
A30: 1800000680
A31: 1800000680
A32: 1800000551
A33: 1800000561

Sheet Sheet7
B2: 10000000
A3: 9200000
B5: 1000000
B6: 5800000
B7: 2400000
B9: =SUM(B4:B8) -> 9200000
D13: 623,051.66-
D14: 718,804.20-
D15: 93,676.13-
D16: 600,980.88-

Sheet Sheet8
A1: -35144.58
A2: -1851296.85
A3: -78079.51
A4: -259269.54
A5: -2099382.1
A6: -19332.42
A7: -103340.43
A8: -163775.13
A9: -83649.39
A10: -16012.64
A11: -213584.04
A12: -12437.88
A13: -121939.27
A14: -108332.61
A15: =SUM(A1:A14) -> -5165576.39

Sheet Sheet5
A1: 45000000 | C1: Doc No | D1: Doc Date
B2: 20000000 | C2: 1900001494 | D2: 2023-10-01
B3: 9000000 | C3: 1900001557 | D3: 2023-10-04
B4: 8000000 | C4: 1900002148 | D4: 2023-10-29
B5: 8000000 | C5: 1900002621 | D5: 2023-11-28
B6: =SUM(B2:B5) -> 45000000
